fUSD/lending_fUSD_20240803
["ID","MTS","AMOUNT","RATE_DAILY","PERIOD"]
[334010658,1722678641605,-500.0,0.00016438,2]
[334010659,1722678641615,-507.35,0.00016438,2]
[334010660,1722678641625,-591.72,0.00016438,2]
[334010661,1722678641634,-500.0,0.00016438,2]
[334010662,1722678641644,-1075.49,0.00016438,2]
[334010663,1722678641653,-500.0,0.00016438,2]
[334010664,1722678641663,-500.0,0.00016438,2]
[334010665,1722678641673,-500.0,0.00016438,2]
[334010666,1722678641682,-533.95,0.00016438,2]
[334010667,1722678641692,-500.0,0.00016438,2]
[334010668,1722678641701,-905.86,0.00016438,2]
[334010669,1722678641711,-636.91226873,0.00016438,2]
[334010670,1722678641720,-500.0,0.00016438,2]
[334010671,1722678641729,-500.0,0.00016438,2]
[334010672,1722678641739,-500.0,0.00016438,2]
[334010673,1722678641748,-500.0,0.00016438,2]
[334010674,1722678641758,-500.0,0.00016438,2]
[334010675,1722678641768,-500.0,0.00016438,2]
[334010676,1722678641778,-6746.64,0.00016438,2]
[334010677,1722678641788,-500.0,0.00016438,2]
[334010678,1722678641798,-500.0,0.00016438,2]
[334010679,1722678641807,-500.0,0.00016438,2]
[334010680,1722678641816,-1281.29,0.00016438,2]
[334010681,1722678641826,-500.0,0.00016438,2]
[334010682,1722678641835,-500.0,0.00016438,2]
[334010683,1722678641845,-3081.75,0.00016438,2]
[334010684,1722678641854,-3206.68,0.00016438,2]
[334010685,1722678641863,-500.0,0.00016438,2]
[334010686,1722678641872,-1891.02,0.00016438,2]
[334010687,1722678641882,-1705.03,0.00016438,2]
[334010688,1722678641891,-500.0,0.00016438,2]
[334010689,1722678641900,-1730.94,0.00016438,2]
[334010690,1722678641909,-234.0131895,0.00016438,2]
[334010691,1722678641919,-2974.88,0.00016438,2]
[334010692,1722678641928,-500.0,0.00016438,2]
[334010693,1722678641937,-500.0,0.00016438,2]
[334010694,1722678641946,-780.08,0.00016438,2]
[334010695,1722678641957,-1126.96,0.00016438,2]
[334010696,1722678641967,-500.0,0.00016438,2]
[334010697,1722678641978,-500.0,0.00016438,2]
[334010698,1722678641987,-500.0,0.00016438,2]
[334010699,1722678641996,-645.49,0.00016438,2]
[334010700,1722678642006,-500.0,0.00016438,2]
[334010701,1722678642015,-500.0,0.00016438,2]
[334010702,1722678642024,-500.0,0.00016438,2]
[334010703,1722678642036,-841.99,0.00016438,2]
[334010704,1722678642046,-155.354383,0.00016438,2]
[334010705,1722678642058,-500.0,0.00016438,2]
[334010706,1722678642068,-869.97,0.00016438,2]
[334010707,1722678642078,-500.0,0.00016438,2]
[334010708,1722678642087,-1799.38,0.00016438,2]
[334010709,1722678642096,-903.14,0.00016438,2]
[334010710,1722678642106,-794.97,0.00016438,2]
[334010711,1722678642115,-500.0,0.00016438,2]
[334010712,1722678642124,-500.0,0.00016438,2]
[334010713,1722678642133,-500.0,0.00016438,2]
[334010714,1722678642143,-600.64,0.00016438,2]
[334010715,1722678642154,-500.0,0.00016438,2]
[334010716,1722678642164,-500.0,0.00016438,2]
[334010717,1722678642173,-500.0,0.00016438,2]
[334010718,1722678642183,-500.0,0.00016438,2]
[334010719,1722678642192,-500.0,0.00016438,2]
[334010720,1722678642202,-2958.79,0.00016438,2]
[334010721,1722678642211,-543.52,0.00016438,2]
[334010722,1722678642221,-1776.29,0.00016438,2]
[334010723,1722678642232,-887.56,0.00016438,2]
[334010724,1722678642242,-531.88,0.00016438,2]
[334010725,1722678642252,-500.0,0.00016438,2]
[334010726,1722678642262,-500.0,0.00016438,2]
[334010727,1722678642272,-1529.14,0.00016438,2]
[334010728,1722678642281,-758.82,0.00016438,2]
[334010729,1722678642291,-1032.15,0.00016438,2]
[334010730,1722678642304,-735.55,0.00016438,2]
[334010731,1722678642314,-500.0,0.00016438,2]
[334010732,1722678642323,-500.0,0.00016438,2]
[334010733,1722678642332,-500.76,0.00016438,2]
[334010734,1722678642342,-703.9,0.00016438,2]
[334010735,1722678642351,-1598.38,0.00016438,2]
[334010736,1722678642361,-533.23,0.00016438,2]
[334010737,1722678642371,-1448.02,0.00016438,2]
[334010738,1722678642380,-531.35,0.00016438,2]
[334010739,1722678642389,-500.0,0.00016438,2]
[334010740,1722678642404,-500.0,0.00016438,2]
[334010741,1722678642413,-541.45,0.00016438,2]
[334010742,1722678642423,-500.0,0.00016438,2]
[334010743,1722678642432,-500.0,0.00016438,2]
[334010744,1722678642443,-500.0,0.00016438,2]
[334010745,1722678642455,-500.0,0.00016438,2]
[334010746,1722678642465,-1068.57,0.00016438,2]
[334010747,1722678642475,-630.84,0.00016438,2]
[334010748,1722678642484,-500.0,0.00016438,2]
[334010749,1722678642494,-640.56,0.00016438,2]
[334010750,1722678642503,-850.86,0.00016438,2]
[334010751,1722678642512,-1290.29,0.00016438,2]
[334010752,1722678642522,-500.0,0.00016438,2]
[334010753,1722678642531,-500.0,0.00016438,2]
[334010755,1722678642540,-500.0,0.00016438,2]
[334010756,1722678642549,-550.93,0.00016438,2]
[334010757,1722678642559,-500.0,0.00016438,2]
[334010758,1722678642568,-1062.96,0.00016438,2]
[334010759,1722678642578,-500.0,0.00016438,2]
[334010760,1722678642587,-597.87,0.00016438,2]
[334010761,1722678642596,-500.0,0.00016438,2]
[334010762,1722678642606,-655.49,0.00016438,2]
[334010763,1722678642616,-500.0,0.00016438,2]
[334010764,1722678642625,-757.89,0.00016438,2]
[334010765,1722678642634,-573.66,0.00016438,2]
[334010766,1722678642644,-151.16449214,0.00016438,2]
[334010767,1722678642655,-1086.76,0.00016438,2]
[334010768,1722678642665,-587.18,0.00016438,2]
[334010769,1722678642675,-500.0,0.00016438,2]
[334010770,1722678642685,-1534.11,0.00016438,2]
[334010771,1722678642695,-1052.75,0.00016438,2]
[334010772,1722678642704,-500.0,0.00016438,2]
[334010773,1722678642714,-369.23022061,0.00016438,2]
[334010774,1722678642724,-616.75185701,0.00016438,2]
[334010775,1722678642743,-519.77814299,0.00016438,2]
[334010776,1722678642754,-2262.78,0.00016438,2]
[334010777,1722678642765,-500.0,0.00016438,2]
[334010778,1722678642774,-500.0,0.00016438,2]
[334010779,1722678642785,-500.0,0.00016438,2]
[334010780,1722678642795,-1253.59,0.00016438,2]
[334010781,1722678642805,-500.0,0.00016438,2]
[334010782,1722678642814,-1133.74,0.00016438,2]
[334010783,1722678642823,-500.0,0.00016438,2]
[334010784,1722678642838,-500.0,0.00016438,2]
[334010785,1722678642847,-731.01,0.00016438,2]
[334010786,1722678642858,-500.0,0.00016438,2]
[334010787,1722678642867,-500.0,0.00016438,2]
[334010788,1722678642876,-305.11613701,0.00016438,2]
[334010789,1722678642886,-500.0,0.00016438,2]
[334010790,1722678642896,-500.0,0.00016438,2]
[334010791,1722678642907,-744.38,0.00016438,2]
[334010792,1722678642917,-1199.12,0.00016438,2]
[334010793,1722678642929,-500.0,0.00016438,2]
[334010794,1722678642940,-431.51479024,0.00016438,2]
[334010795,1722678642950,-500.0,0.00016438,2]
[334010796,1722678642961,-500.0,0.00016438,2]
[334010797,1722678642972,-500.0,0.00016438,2]
[334010798,1722678642982,-500.0,0.00016438,2]
[334010799,1722678642991,-500.0,0.00016438,2]
[334010800,1722678643001,-500.0,0.00016438,2]
[334010801,1722678643011,-1678.26,0.00016438,2]
[334010802,1722678643020,-922.71,0.00016438,2]
[334010803,1722678643030,-555.24,0.00016438,2]
[334010804,1722678643039,-500.0,0.00016438,2]
[334010805,1722678643049,-556.04,0.00016438,2]
[334010806,1722678643059,-500.0,0.00016438,2]
[334010807,1722678643068,-500.0,0.00016438,2]
[334010808,1722678643079,-1922.83,0.00016438,2]
[334010809,1722678643088,-571.96,0.00016438,2]
[334010810,1722678643098,-500.0,0.00016438,2]
[334010811,1722678643108,-3130.39,0.00016438,2]
[334010813,1722678643117,-500.0,0.00016438,2]
[334010815,1722678643126,-986.04,0.00016438,2]
[334010817,1722678643136,-500.0,0.00016438,2]
[334010819,1722678643145,-500.0,0.00016438,2]
[334010821,1722678643154,-646.01,0.00016438,2]
[334010823,1722678643164,-500.0,0.00016438,2]
[334010824,1722678643173,-485.88990246,0.00016438,2]
[334010827,1722678643185,-1080.64,0.00016438,2]
[334010829,1722678643195,-787.83,0.00016438,2]
[334010831,1722678643205,-500.0,0.00016438,2]
[334010833,1722678643215,-500.0,0.00016438,2]
[334010834,1722678643224,-500.0,0.00016438,2]
[334010836,1722678643233,-500.0,0.00016438,2]
[334010838,1722678643244,-500.0,0.00016438,2]
[334010840,1722678643253,-500.0,0.00016438,2]
[334010842,1722678643263,-607.37,0.00016438,2]
[334010844,1722678643272,-596.29,0.00016438,2]
[334010847,1722678643281,-866.94,0.00016438,2]
[334010850,1722678643290,-500.0,0.00016438,2]
[334010851,1722678643301,-2033.23,0.00016438,2]
[334010852,1722678643310,-500.0,0.00016438,2]
[334010853,1722678643320,-500.0,0.00016438,2]
[334010854,1722678643330,-3376.28,0.00016438,2]
[334010855,1722678643339,-500.0,0.00016438,2]
[334010856,1722678643348,-500.0,0.00016438,2]
[334010857,1722678643358,-1798.77,0.00016438,2]
[334010858,1722678643367,-500.0,0.00016438,2]
[334010859,1722678643376,-3183.13,0.00016438,2]
[334010860,1722678643385,-663.6,0.00016438,2]
[334010861,1722678643397,-500.0,0.00016438,2]
[334010862,1722678643408,-1897.37,0.00016438,2]
[334010863,1722678643419,-500.0,0.00016438,2]
[334010864,1722678643428,-824.86,0.00016438,2]
[334010865,1722678643438,-976.18,0.00016438,2]
[334010866,1722678643448,-599.22,0.00016438,2]
[334010867,1722678643457,-500.0,0.00016438,2]
[334010868,1722678643467,-500.0,0.00016438,2]
[334010869,1722678643478,-500.0,0.00016438,2]
[334010870,1722678643489,-500.0,0.00016438,2]
[334010871,1722678643499,-5211.0,0.00016438,2]
[334010872,1722678643509,-500.0,0.00016438,2]
[334010873,1722678643519,-500.0,0.00016438,2]
[334010874,1722678643530,-500.0,0.00016438,2]
[334010875,1722678643541,-2176.84,0.00016438,2]
[334010876,1722678643551,-480.9116118,0.00016438,2]
[334010877,1722678643567,-1032.41555777,0.00016438,2]
[334010878,1722678643586,-492.09818283,0.00016438,2]
[334010879,1722678643598,-558.89350208,0.00016438,2]
[334010880,1722678643614,-283.26114552,0.00016438,2]
[334010881,1722678643624,-698.98089365,0.00016438,2]
[334010882,1722678644193,-732.19,0.00016428,3]
[334010883,1722678644203,-959.51910635,0.00016438,2]
[334010884,1722678644212,-500.0,0.00016438,2]
[334010885,1722678644222,-740.96,0.00016438,2]
[334010886,1722678644231,-708.43,0.00016438,2]
[334010887,1722678644241,-500.0,0.00016438,2]
[334010888,1722678644250,-601.79,0.00016438,2]
[334010889,1722678644259,-2113.74,0.00016438,2]
[334010890,1722678644269,-500.0,0.00016711,2]
[334010891,1722678644278,-2428.48,0.00016711,2]
[334010892,1722678644288,-1340.64,0.00016711,2]
[334010893,1722678644298,-500.0,0.00016711,2]
[334010894,1722678644308,-535.54,0.00016711,2]
[334010895,1722678644317,-1622.58,0.00016711,2]
[334010896,1722678644327,-639.59,0.00016711,2]
[334010897,1722678644337,-555.52,0.00016711,2]
[334010898,1722678644347,-597.0,0.00016711,2]
[334010899,1722678644356,-500.0,0.00016711,2]
[334010900,1722678644366,-500.0,0.00016711,2]
[334010901,1722678644376,-690.33,0.00016711,2]
[334010902,1722678644386,-915.58,0.00016711,2]
[334010903,1722678644397,-801.99,0.00016711,2]
[334010904,1722678644409,-500.0,0.00016711,2]
[334010905,1722678644419,-500.0,0.00016711,2]
[334010906,1722678644429,-1791.64,0.00016711,2]
[334010907,1722678644439,-753.8,0.00016711,2]
[334010908,1722678644448,-500.0,0.00016711,2]
[334010909,1722678644458,-500.0,0.00016711,2]
[334010910,1722678644467,-1621.1,0.00016711,2]
[334010911,1722678644481,-826.66,0.00016711,2]
[334010912,1722678644490,-500.0,0.00016711,2]
[334010913,1722678644500,-1149.04,0.00016711,2]
[334010914,1722678644510,-500.0,0.00016711,2]
[334010915,1722678644520,-500.0,0.00016711,2]
[334010916,1722678644529,-2521.02,0.00016711,2]
[334010917,1722678644539,-3443.13,0.00016711,2]
[334010918,1722678644548,-568.43279509,0.00016711,2]
[334010919,1722678644559,-505.66,0.00016711,2]
[334010920,1722678644568,-500.0,0.00016712,2]
[334010921,1722678644578,-500.0,0.00016712,2]
[334010922,1722678644588,-500.0,0.00016712,2]
[334010923,1722678644597,-500.0,0.00016712,2]
[334010924,1722678644800,-500.0,0.00016712,2]
[334010925,1722678644839,-500.0,0.00016712,2]
[334010926,1722678644850,-223.97292665,0.00016712,2]
[334010927,1722678644860,-500.0,0.00016712,2]
[334010928,1722678644870,-500.0,0.00016712,2]
[334010929,1722678644880,-500.0,0.00016712,2]
[334010930,1722678644890,-500.0,0.00016712,2]
[334010931,1722678644900,-583.63888026,0.00016712,2]
[334010932,1722678644910,-320.04002174,0.00016712,2]
[334010933,1722678644921,-500.0,0.00016712,2]
[334010934,1722678644932,-500.0,0.00016712,2]
[334010935,1722678644942,-500.0,0.00016712,2]
[334010936,1722678644952,-500.0,0.00016712,2]
[334010937,1722678644962,-511.71943271,0.00016712,2]
[334010938,1722678644972,-363.38517964,0.00016712,2]
[334010939,1722678644983,-500.0,0.00016712,2]
[334010940,1722678644992,-494.43570398,0.00016712,2]
[334010941,1722678645002,-500.0,0.00016712,2]
[334010942,1722678645012,-500.0,0.00016712,2]
[334010943,1722678645022,-500.0,0.00016712,2]
[334010944,1722678645031,-500.0,0.00016712,2]
[334010945,1722678645041,-500.0,0.00016712,2]
[334010946,1722678645051,-500.0,0.00016712,2]
[334010947,1722678645061,-500.0,0.00016712,2]
[334010948,1722678645071,-247.64820199,0.00016712,2]
[334010949,1722678645081,-500.0,0.00016712,2]
[334010950,1722678645091,-500.0,0.00016712,2]
[334010951,1722678645100,-500.0,0.00016712,2]
[334010952,1722678645110,-500.0,0.00016712,2]
[334010953,1722678645119,-500.0,0.00016712,2]
[334010954,1722678645129,-366.19719232,0.00016712,2]
[334010955,1722678645140,-573.77962354,0.00016712,2]
[334010956,1722678645149,-500.0,0.00016712,2]
[334010957,1722678645159,-500.0,0.00016712,2]
[334010958,1722678645170,-500.0,0.00016712,2]
[334010959,1722678645179,-513.09,0.00016712,2]
[334010960,1722678645189,-591.72757538,0.00016712,2]
[334010961,1722678645198,-500.0,0.00016712,2]
[334010962,1722678645208,-500.0,0.00016712,2]
[334010963,1722678645218,-525.25,0.00016712,2]
[334010964,1722678645228,-1133.37,0.00016712,2]
[334010965,1722678645238,-500.0,0.00016712,2]
[334010966,1722678645247,-344.34480176,0.00016712,2]
[334010967,1722678645257,-500.0,0.00016712,2]
[334010968,1722678645267,-500.0,0.00016712,2]
[334010969,1722678645277,-851.16,0.00016712,2]
[334010970,1722678645287,-500.0,0.00016712,2]
[334010971,1722678645296,-500.0,0.00016712,2]
[334010972,1722678645306,-500.0,0.00016712,2]
[334010973,1722678645316,-500.0,0.00016712,2]
[334010974,1722678645326,-500.0,0.00016712,2]
[334010975,1722678645336,-500.0,0.00016712,2]
[334010976,1722678645346,-500.0,0.00016712,2]
[334010977,1722678645358,-500.0,0.00016712,2]
[334010978,1722678645369,-500.0,0.00016712,2]
[334010979,1722678645379,-500.0,0.00016712,2]
[334010980,1722678645390,-500.0,0.00016712,2]
[334010981,1722678645403,-500.0,0.00016712,2]
[334010982,1722678645413,-500.0,0.00016712,2]
[334010984,1722678645423,-500.0,0.00016712,2]
[334010986,1722678645434,-500.0,0.00016712,2]
[334010987,1722678645446,-500.0,0.00016712,2]
[334010988,1722678645455,-500.0,0.00016712,2]
[334010989,1722678645465,-500.0,0.00016712,2]
[334010990,1722678645476,-513.15,0.00016712,2]
[334010991,1722678645485,-500.0,0.00016712,2]
[334010992,1722678645495,-500.0,0.00016712,2]
[334010993,1722678645504,-500.0,0.00016712,2]
[334010994,1722678645514,-500.0,0.00016712,2]
[334010995,1722678645523,-500.0,0.00016712,2]
[334010996,1722678645533,-500.0,0.00016712,2]
[334010997,1722678645542,-500.0,0.00016712,2]
[334010998,1722678645552,-633.26,0.00016712,2]
[334010999,1722678645561,-433.16802277,0.00016712,2]
[334011000,1722678645571,-500.0,0.00016712,2]
[334011001,1722678645580,-500.0,0.00016712,2]
[334011002,1722678645590,-500.0,0.00016712,2]
[334011003,1722678645599,-500.0,0.00016712,2]
[334011004,1722678645609,-500.0,0.00016712,2]
[334011005,1722678645621,-500.0,0.00016712,2]
[334011006,1722678645633,-243.99942199,0.00016712,2]
[334011007,1722678645643,-500.0,0.00016712,2]
[334011008,1722678645654,-500.0,0.00016712,2]
[334011009,1722678645664,-500.0,0.00016712,2]
[334011010,1722678645674,-500.0,0.00016712,2]
[334011011,1722678645684,-500.0,0.00016712,2]
[334011012,1722678645694,-500.0,0.00016712,2]
[334011013,1722678645703,-500.0,0.00016712,2]
[334011014,1722678645713,-500.0,0.00016712,2]
[334011015,1722678645723,-500.0,0.00016712,2]
[334011016,1722678645732,-500.0,0.00016712,2]
[334011017,1722678645742,-505.5,0.00016712,2]
[334011018,1722678645751,-790.53,0.00016712,2]
[334011019,1722678645761,-500.0,0.00016712,2]
[334011020,1722678645771,-500.0,0.00016712,2]
[334011021,1722678645780,-500.0,0.00016712,2]
[334011022,1722678645790,-500.0,0.00016712,2]
[334011023,1722678645799,-500.0,0.00016712,2]
[334011024,1722678645809,-500.0,0.00016712,2]
[334011025,1722678645819,-500.0,0.00016712,2]
[334011026,1722678645828,-500.0,0.00016712,2]
[334011027,1722678645838,-500.0,0.00016712,2]
[334011028,1722678645848,-324.23636363,0.00016712,2]
[334011029,1722678645857,-455.1144171,0.00016712,2]
[334011030,1722678645867,-185.04,0.00016712,2]
[334011031,1722678645877,-581.26029661,0.00016712,2]
[334011032,1722678645887,-500.0,0.00016712,2]
[334011033,1722678645896,-500.0,0.00016712,2]
[334011034,1722678645906,-500.0,0.00016712,2]
[334011035,1722678645916,-500.0,0.00016712,2]
[334011036,1722678645926,-500.0,0.00016712,2]
[334011037,1722678645936,-500.0,0.00016712,2]
[334011038,1722678645949,-500.0,0.00016712,2]
[334011039,1722678645960,-500.0,0.00016712,2]
[334011040,1722678645970,-624.78250614,0.00016712,2]
[334011041,1722678645980,-500.0,0.00016712,2]
[334011042,1722678645990,-500.0,0.00016712,2]
[334011043,1722678646000,-500.0,0.00016712,2]
[334011044,1722678646010,-500.0,0.00016712,2]
[334011045,1722678646021,-500.0,0.00016712,2]
[334011046,1722678646031,-500.0,0.00016712,2]
[334011047,1722678646040,-500.0,0.00016712,2]
[334011048,1722678646049,-500.0,0.00016712,2]
[334011049,1722678646058,-500.0,0.00016712,2]
[334011050,1722678646068,-500.0,0.00016712,2]
[334011051,1722678646078,-500.0,0.00016712,2]
[334011052,1722678646089,-500.0,0.00016712,2]
[334011053,1722678646099,-500.0,0.00016712,2]
[334011054,1722678646110,-500.0,0.00016712,2]
[334011055,1722678646119,-500.0,0.00016712,2]
[334011056,1722678646130,-500.0,0.00016712,2]
[334011057,1722678646139,-500.0,0.00016712,2]
[334011058,1722678646149,-500.0,0.00016712,2]
[334011059,1722678646159,-500.0,0.00016712,2]
[334011060,1722678646168,-500.0,0.00016712,2]
[334011061,1722678646178,-500.0,0.00016712,2]
[334011062,1722678646188,-588.38,0.00016712,2]
[334011063,1722678646197,-500.0,0.00016712,2]
[334011064,1722678646207,-500.0,0.00016712,2]
[334011065,1722678646217,-500.0,0.00016712,2]
[334011066,1722678646227,-500.0,0.00016712,2]
[334011067,1722678646236,-500.0,0.00016712,2]
[334011068,1722678646246,-500.0,0.00016712,2]
[334011069,1722678646256,-500.0,0.00016712,2]
[334011070,1722678646266,-268.88424714,0.00016712,2]
[334011071,1722678646275,-500.0,0.00016712,2]
[334011072,1722678646285,-500.0,0.00016712,2]
[334011073,1722678646295,-500.0,0.00016712,2]
[334011074,1722678646305,-500.0,0.00016712,2]
[334011075,1722678646315,-1146.08,0.00016712,2]
[334011076,1722678646326,-500.0,0.00016712,2]
[334011077,1722678646336,-500.0,0.00016712,2]
[334011078,1722678646346,-500.0,0.00016712,2]
[334011079,1722678646356,-500.0,0.00016712,2]
[334011080,1722678646366,-500.0,0.00016712,2]
[334011081,1722678646376,-500.0,0.00016712,2]
[334011082,1722678646385,-500.0,0.00016712,2]
[334011083,1722678646396,-764.01,0.00016712,2]
[334011084,1722678646409,-500.0,0.00016712,2]
[334011085,1722678646419,-500.0,0.00016712,2]
[334011086,1722678646429,-671.39,0.00016712,2]
[334011087,1722678646440,-500.0,0.00016712,2]
[334011088,1722678646449,-500.0,0.00016712,2]
[334011089,1722678646461,-500.0,0.00016712,2]
[334011090,1722678646471,-646.58,0.00016712,2]
[334011091,1722678646482,-500.0,0.00016712,2]
[334011092,1722678646492,-500.0,0.00016712,2]
[334011093,1722678646502,-500.0,0.00016712,2]
[334011094,1722678646512,-500.0,0.00016712,2]
[334011095,1722678646522,-500.0,0.00016712,2]
[334011096,1722678646531,-500.0,0.00016712,2]
[334011097,1722678646541,-500.0,0.00016712,2]
[334011098,1722678646550,-500.0,0.00016712,2]
[334011099,1722678646561,-500.0,0.00016712,2]
[334011100,1722678646571,-500.0,0.00016712,2]
[334011101,1722678646580,-500.0,0.00016712,2]
[334011102,1722678646590,-500.0,0.00016712,2]
[334011103,1722678646599,-500.0,0.00016712,2]
[334011104,1722678646609,-159.00529577,0.00016712,2]
[334011105,1722678646619,-500.0,0.00016712,2]
[334011106,1722678646629,-601.64,0.00016712,2]
[334011107,1722678646638,-500.0,0.00016712,2]
[334011108,1722678646648,-500.0,0.00016712,2]
[334011109,1722678646657,-500.0,0.00016712,2]
[334011110,1722678646667,-500.0,0.00016712,2]
[334011111,1722678646681,-832.8,0.00016712,2]
[334011112,1722678646690,-660.37,0.00016712,2]
[334011113,1722678646700,-500.0,0.00016712,2]
[334011114,1722678646709,-500.0,0.00016712,2]
[334011115,1722678646719,-520.30167392,0.00016712,2]
[334011116,1722678646728,-500.0,0.00016712,2]
[334011117,1722678646738,-500.0,0.00016712,2]
[334011118,1722678646748,-500.0,0.00016712,2]
[334011119,1722678646758,-507.35,0.00016712,2]
[334011120,1722678646767,-591.72,0.00016712,2]
[334011121,1722678646777,-500.0,0.00016712,2]
[334011122,1722678646786,-1075.49,0.00016712,2]
[334011123,1722678646796,-500.0,0.00016712,2]
[334011124,1722678646806,-500.0,0.00016712,2]
[334011125,1722678646815,-500.0,0.00016712,2]
[334011126,1722678646825,-533.95,0.00016712,2]
[334011127,1722678646834,-500.0,0.00016712,2]
[334011128,1722678646844,-905.86,0.00016712,2]
[334011129,1722678646854,-500.0,0.00016712,2]
[334011130,1722678646863,-500.0,0.00016712,2]
[334011131,1722678646873,-560.94909688,0.00016712,2]
[334011132,1722678646883,-500.0,0.00016712,2]
[334011133,1722678646892,-500.0,0.00016712,2]
[334011134,1722678646902,-500.0,0.00016712,2]
[334011135,1722678646911,-6746.64,0.00016712,2]
[334011136,1722678646922,-500.0,0.00016712,2]
[334011137,1722678646932,-500.0,0.00016712,2]
[334011138,1722678646942,-480.8448859,0.00016712,2]
[334011139,1722678646951,-1281.29,0.00016712,2]
[334011140,1722678646961,-500.0,0.00016712,2]
[334011141,1722678646971,-500.0,0.00016712,2]
[334011142,1722678646980,-3081.75,0.00016712,2]
[334011143,1722678646990,-3206.68,0.00016712,2]
[334011144,1722678646999,-500.0,0.00016712,2]
[334011145,1722678647009,-1891.02,0.00016712,2]
[334011146,1722678647019,-500.0,0.00016712,2]
[334011147,1722678647029,-1730.94,0.00016712,2]
[334011148,1722678647038,-2974.88,0.00016712,2]
[334011149,1722678647048,-500.0,0.00016712,2]
[334011150,1722678647057,-500.0,0.00016712,2]
[334011151,1722678647067,-780.08,0.00016712,2]
[334011152,1722678647076,-1126.96,0.00016712,2]
[334011153,1722678647086,-500.0,0.00016712,2]
[334011154,1722678647095,-500.0,0.00016712,2]
[334011155,1722678647105,-500.0,0.00016712,2]
[334011156,1722678647114,-645.49,0.00016712,2]
[334011157,1722678647123,-500.0,0.00016712,2]
[334011158,1722678647133,-500.0,0.00016712,2]
[334011159,1722678647143,-500.0,0.00016712,2]
[334011160,1722678647152,-841.99,0.00016712,2]
[334011161,1722678647161,-500.0,0.00016712,2]
[334011162,1722678647171,-869.97,0.00016712,2]
[334011163,1722678647180,-500.0,0.00016712,2]
[334011164,1722678647189,-1799.38,0.00016712,2]
[334011165,1722678647199,-903.14,0.00016712,2]
[334011166,1722678647208,-794.97,0.00016712,2]
[334011167,1722678647218,-500.0,0.00016712,2]
[334011168,1722678647227,-500.0,0.00016712,2]
[334011169,1722678647237,-500.0,0.00016712,2]
[334011170,1722678647246,-600.64,0.00016712,2]
[334011171,1722678647336,-500.0,0.00016712,2]
[334011172,1722678647345,-500.0,0.00016712,2]
[334011173,1722678647354,-500.0,0.00016712,2]
[334011174,1722678647364,-500.0,0.00016712,2]
[334011175,1722678647373,-500.0,0.00016712,2]
[334011176,1722678647382,-2958.79,0.00016712,2]
[334011177,1722678647391,-543.52,0.00016712,2]
[334011178,1722678647404,-887.56,0.00016712,2]
[334011179,1722678647414,-1776.29,0.00016712,2]
[334011180,1722678647423,-531.88,0.00016712,2]